fUST/lending_fUST_20250630
["ID","MTS","AMOUNT","RATE_DAILY","PERIOD"]
[368671370,1751289045653,-198.87859106,0.00019178,2]
[368671372,1751289045665,-151.0,0.00019178,2]
[368671375,1751289045680,-534.094577,0.00019178,2]
[368671377,1751289045694,-151.0,0.000192,2]
[368671380,1751289045708,-151.25262251,0.00019205,2]
[368671382,1751289045721,-742.6949969,0.00019212,2]
[368671385,1751289045733,-4818.70195814,0.00019245,2]
[368671387,1751289045744,-770.17471178,0.00019267,2]
[368671389,1751289045756,-151.0,0.000193,2]
[368671392,1751289045769,-151.0,0.000193,2]
[368671394,1751289045781,-551.95,0.00019307,2]
[368671396,1751289045793,-460.0,0.00019307,2]
[368671398,1751289045804,-918.71,0.00019307,2]
[368671400,1751289045814,-501.72,0.00019307,2]
[368671402,1751289045826,-460.0,0.00019308,2]
[368671405,1751289045837,-460.0,0.00019308,2]
[368671407,1751289045850,-877.44,0.00019308,2]
[368671409,1751289045862,-460.0,0.00019308,2]
[368671412,1751289045874,-460.0,0.00019308,2]
[368671414,1751289045887,-1350.45,0.00019308,2]
[368671416,1751289045900,-460.0,0.00019308,2]
[368671419,1751289045913,-460.0,0.00019308,2]
[368671421,1751289045927,-1325.04,0.00019308,2]
[368671423,1751289045939,-460.0,0.00019308,2]
[368671425,1751289045949,-460.0,0.00019308,2]
[368671428,1751289045959,-460.0,0.00019308,2]
[368671430,1751289045969,-460.0,0.00019308,2]
[368671432,1751289045981,-548.55,0.00019308,2]
[368671434,1751289045994,-1353.21,0.00019308,2]
[368671437,1751289046008,-460.0,0.00019308,2]
[368671439,1751289046020,-1904.62,0.00019308,2]
[368671441,1751289046031,-460.0,0.00019308,2]
[368671443,1751289046042,-460.0,0.00019308,2]
[368671446,1751289046053,-460.0,0.00019308,2]
[368671448,1751289046065,-1940.45,0.00019308,2]
[368671450,1751289046076,-1573.38,0.00019308,2]
[368671452,1751289046087,-460.0,0.00019308,2]
[368671454,1751289046097,-851.94,0.00019308,2]
[368671456,1751289046108,-460.0,0.00019308,2]
[368671459,1751289046119,-460.0,0.00019308,2]
[368671461,1751289046130,-460.0,0.00019308,2]
[368671463,1751289046141,-460.0,0.00019308,2]
[368671465,1751289046153,-460.0,0.00019308,2]
[368671467,1751289046165,-460.0,0.00019308,2]
[368671469,1751289046176,-460.0,0.00019308,2]
[368671471,1751289046186,-460.0,0.00019308,2]
[368671474,1751289046199,-497.4,0.00019308,2]
[368671476,1751289046209,-460.0,0.00019308,2]
[368671478,1751289046221,-460.0,0.00019309,2]
[368671480,1751289046233,-460.0,0.00019309,2]
[368671483,1751289046246,-460.0,0.00019309,2]
[368671485,1751289046257,-460.0,0.00019309,2]
[368671487,1751289046268,-460.0,0.00019309,2]
[368671489,1751289046279,-460.0,0.00019309,2]
[368671491,1751289046289,-460.0,0.00019309,2]
[368671494,1751289046300,-460.0,0.00019309,2]
[368671496,1751289046311,-151.0,0.00019309,2]
[368671498,1751289046321,-460.0,0.00019309,2]
[368671500,1751289046333,-151.0,0.00019309,2]
[368671502,1751289046344,-460.0,0.00019309,2]
[368671504,1751289046357,-460.0,0.00019309,2]
[368671506,1751289046368,-460.0,0.00019309,2]
[368671509,1751289046379,-460.0,0.00019309,2]
[368671511,1751289046391,-151.0,0.00019309,2]
[368671513,1751289046403,-151.0,0.00019309,2]
[368671515,1751289046414,-493.34598627,0.00019309,2]
[368671517,1751289046426,-460.0,0.00019309,2]
[368671519,1751289046437,-501.27,0.00019309,2]
[368671521,1751289046448,-460.0,0.00019309,2]
[368671524,1751289046460,-151.0,0.00019309,2]
[368671526,1751289046471,-460.0,0.00019309,2]
[368671528,1751289046483,-460.0,0.00019309,2]
[368671530,1751289046494,-460.0,0.00019309,2]
[368671532,1751289046505,-863.08,0.00019309,2]
[368671535,1751289046517,-460.0,0.00019309,2]
[368671536,1751289046529,-596.43,0.00019309,2]
[368671537,1751289046540,-460.0,0.00019309,2]
[368671538,1751289046551,-460.0,0.00019309,2]
[368671539,1751289046561,-460.0,0.00019309,2]
[368671540,1751289046572,-460.0,0.00019309,2]
[368671541,1751289046583,-460.0,0.00019309,2]
[368671542,1751289046594,-460.0,0.00019309,2]
[368671543,1751289046605,-460.0,0.00019309,2]
[368671544,1751289046616,-1440.92,0.00019309,2]
[368671545,1751289046628,-460.0,0.00019309,2]
[368671546,1751289046639,-460.0,0.00019309,2]
[368671547,1751289046649,-460.0,0.00019309,2]
[368671548,1751289046660,-503.1,0.00019309,2]
[368671549,1751289046671,-929.77,0.00019309,2]
[368671550,1751289046683,-2572.33,0.00019309,2]
[368671551,1751289046693,-460.0,0.00019309,2]
[368671552,1751289046704,-460.0,0.00019309,2]
[368671553,1751289046714,-151.0,0.0001931,2]
[368671554,1751289046726,-151.0,0.0001931,2]
[368671555,1751289046737,-155.07303576,0.0001931,2]
[368671556,1751289046747,-460.0,0.0001931,2]
[368671557,1751289046758,-2480.35,0.0001931,2]
[368671559,1751289046770,-460.0,0.0001931,2]
[368671560,1751289046781,-460.0,0.0001931,2]
[368671561,1751289046792,-910.79,0.0001931,2]
[368671562,1751289046803,-151.0,0.0001931,2]
[368671563,1751289046812,-158.424722,0.0001931,2]
[368671565,1751289046822,-151.0,0.0001931,2]
[368671567,1751289046831,-151.0,0.0001931,2]
[368671569,1751289046840,-460.0,0.0001931,2]
[368671571,1751289046854,-151.0,0.0001931,2]
[368671573,1751289046863,-151.0,0.0001931,2]
[368671575,1751289046872,-151.0,0.0001931,2]
[368671577,1751289046882,-151.0,0.0001931,2]
[368671579,1751289046891,-151.0,0.0001931,2]
[368671598,1751289047059,-151.0,0.0001931,2]
[368671601,1751289047074,-151.0,0.0001931,2]
[368671603,1751289047084,-151.0,0.0001931,2]
[368671605,1751289047094,-151.0,0.0001931,2]
[368671607,1751289047103,-151.0,0.0001931,2]
[368671609,1751289047112,-151.0,0.0001931,2]
[368671611,1751289047121,-461.54027787,0.0001931,2]
[368671613,1751289047130,-151.0,0.00019311,2]
[368671615,1751289047139,-151.0,0.00019311,2]
[368671617,1751289047148,-151.0,0.00019311,2]
[368671619,1751289047162,-151.0,0.00019311,2]
[368671621,1751289047171,-151.0,0.00019311,2]
[368671623,1751289047180,-460.0,0.00019311,2]
[368671625,1751289047190,-460.0,0.00019311,2]
[368671627,1751289047200,-460.0,0.00019311,2]
[368671628,1751289047209,-460.0,0.00019312,2]
[368671630,1751289047219,-460.0,0.00019312,2]
[368671632,1751289047228,-447.8459424,0.00019312,2]
[368671634,1751289047238,-798.67117612,0.00019322,2]
[368671636,1751289047247,-155.0,0.00019332,2]
[368671638,1751289047257,-168.0,0.00019344,2]
[368671640,1751289047266,-732.4710557,0.0001937,2]
[368671642,1751289047275,-828.22200964,0.00019377,2]
[368671644,1751289047285,-1747.183128,0.0001939,2]
[368671646,1751289047294,-151.0,0.000194,2]
[368671648,1751289047303,-151.0,0.000194,2]
[368671650,1751289047313,-168.0,0.00019406,2]
[368671652,1751289047322,-4818.70195814,0.00019417,2]
[368671654,1751289047332,-407.32680855,0.00019432,2]
[368671656,1751289047341,-159.319357,0.00019452,2]
[368671658,1751289047350,-177.5677436,0.00019452,2]
[368671660,1751289047359,-153.0,0.00019452,2]
[368671662,1751289047369,-575.4102369,0.00019452,2]
[368671664,1751289047378,-168.0,0.00019457,2]
[368671666,1751289047387,-151.0,0.000195,2]
[368671668,1751289047397,-151.0,0.000195,2]
[368671670,1751289047406,-240.919935,0.00019534,2]
[368671672,1751289047415,-275.402991,0.00019534,2]
[368671674,1751289047424,-154.6867203,0.00019534,2]
[368671676,1751289047434,-41003.38935403,0.0001958,2]
[368671678,1751289047443,-463033.8197,0.00019581,2]
[368671680,1751289047452,-460.0,0.00019581,2]
[368671682,1751289047463,-918.71,0.00019581,2]
[368671684,1751289047472,-79278.00561295,0.00019582,2]
[368671687,1751289047482,-460.0,0.00019582,2]
[368671689,1751289047492,-407.76415195,0.00019582,2]
[368671690,1751289047502,-877.44,0.00019582,2]
[368671693,1751289047511,-460.0,0.00019582,2]
[368671694,1751289047521,-460.0,0.00019582,2]
[368671696,1751289047530,-1350.45,0.00019582,2]
[368671698,1751289047540,-557.69,0.00019582,2]
[368671700,1751289047550,-460.0,0.00019582,2]
[368671702,1751289047559,-1325.04,0.00019582,2]
[368671704,1751289047570,-460.0,0.00019582,2]
[368671706,1751289047579,-460.0,0.00019582,2]
[368671708,1751289047589,-460.0,0.00019582,2]
[368671710,1751289047598,-460.0,0.00019582,2]
[368671712,1751289047608,-548.55,0.00019582,2]
[368671715,1751289047618,-1353.21,0.00019582,2]
[368671716,1751289047627,-1904.62,0.00019582,2]
[368671718,1751289047637,-460.0,0.00019582,2]
[368671721,1751289047648,-460.0,0.00019582,2]
[368671722,1751289047657,-1940.45,0.00019582,2]
[368671724,1751289047667,-1573.38,0.00019582,2]
[368671726,1751289047676,-460.0,0.00019582,2]
[368671728,1751289047685,-851.94,0.00019582,2]
[368671730,1751289047695,-460.0,0.00019582,2]
[368671732,1751289047704,-460.0,0.00019582,2]
[368671734,1751289047713,-460.0,0.00019582,2]
[368671736,1751289047722,-460.0,0.00019582,2]
[368671738,1751289047732,-460.0,0.00019582,2]
[368671740,1751289047741,-460.0,0.00019582,2]
[368671742,1751289047750,-460.0,0.00019582,2]
[368671744,1751289047760,-497.4,0.00019582,2]
[368671746,1751289047769,-508.9693991,0.00019582,2]
[368671748,1751289047779,-460.0,0.00019583,2]
[368671750,1751289047789,-460.0,0.00019583,2]
[368671752,1751289047799,-460.0,0.00019583,2]
[368671754,1751289047811,-400.23497975,0.00019583,2]
[368671756,1751289047821,-460.0,0.00019583,2]
[368671758,1751289047830,-460.0,0.00019583,2]
[368671760,1751289047839,-460.0,0.00019583,2]
[368671762,1751289047849,-460.0,0.00019583,2]
[368671764,1751289047859,-244.60110214,0.00019583,2]
[368671766,1751289047869,-460.0,0.00019583,2]
[368671768,1751289047880,-460.0,0.00019583,2]
[368671770,1751289047890,-174.58661708,0.00019583,2]
[368671772,1751289047900,-460.0,0.00019583,2]
[368671774,1751289047911,-501.27,0.00019583,2]
[368671776,1751289047922,-460.0,0.00019583,2]
[368671778,1751289047934,-460.0,0.00019583,2]
[368671780,1751289047946,-460.0,0.00019583,2]
[368671782,1751289047956,-460.0,0.00019583,2]
[368671784,1751289047967,-863.08,0.00019583,2]
[368671786,1751289047978,-460.0,0.00019583,2]
[368671788,1751289047988,-596.43,0.00019583,2]
[368671790,1751289047997,-460.0,0.00019583,2]
[368671792,1751289048006,-460.0,0.00019583,2]
[368671794,1751289048016,-460.0,0.00019583,2]
[368671796,1751289048025,-460.0,0.00019583,2]
[368671798,1751289048035,-263.28257756,0.00019583,2]
[368671800,1751289048044,-460.0,0.00019583,2]
[368671802,1751289048054,-460.0,0.00019583,2]
[368671804,1751289048063,-1440.92,0.00019583,2]
[368671806,1751289048073,-460.0,0.00019583,2]
[368671808,1751289048082,-460.0,0.00019583,2]
[368671810,1751289048092,-460.0,0.00019583,2]
[368671812,1751289048101,-503.1,0.00019583,2]
[368671814,1751289048110,-929.77,0.00019583,2]
[368671816,1751289048121,-2572.33,0.00019583,2]
[368671818,1751289048130,-460.0,0.00019583,2]
[368671819,1751289048139,-460.0,0.00019583,2]
[368671820,1751289048148,-175.00328661,0.00019584,2]
[368671821,1751289048162,-2480.35,0.00019584,2]
[368671822,1751289048172,-460.0,0.00019584,2]
[368671823,1751289048181,-460.0,0.00019584,2]
[368671824,1751289048190,-910.79,0.00019584,2]
[368671825,1751289048200,-465.20864405,0.00019584,2]
[368671826,1751289048209,-512.79881809,0.00019585,2]
[368671827,1751289048218,-278.022671,0.00019585,2]
[368671828,1751289048227,-151.0,0.00019585,2]
[368671829,1751289048239,-151.0,0.00019585,2]
[368671830,1751289048248,-151.0,0.00019585,2]
[368671831,1751289048259,-151.0,0.00019586,2]
[368671832,1751289048268,-151.0,0.00019586,2]
[368671833,1751289048277,-433.46174028,0.00019586,2]
[368671834,1751289048286,-460.0,0.00019586,2]
[368671835,1751289048295,-151.0,0.00019586,2]
[368671836,1751289048304,-151.0,0.00019586,2]
[368671837,1751289048314,-151.0,0.00019586,2]
[368671838,1751289048322,-233.508776,0.00019586,2]
[368671839,1751289048331,-151.0,0.00019586,2]
[368671840,1751289048341,-151.0,0.00019586,2]
[368671841,1751289048350,-4818.70195814,0.0001959,2]
[368671842,1751289048359,-151.0,0.000196,2]
[368671843,1751289048368,-1000.0,0.00019621,2]
[368671844,1751289048377,-1000.0,0.00019621,2]
[368671845,1751289048386,-1000.0,0.00019621,2]
[368671846,1751289048395,-5000.0,0.0001965,2]
[368671847,1751289048405,-151.0,0.00019659,2]
[368671848,1751289048414,-151.0,0.00019659,2]
[368671849,1751289048423,-186.939808,0.00019659,2]
[368671850,1751289048432,-20022.32824328,0.0001966,2]
[368671851,1751289048442,-151.0,0.0001966,2]
[368671852,1751289048451,-151.0,0.0001966,2]
[368671853,1751289048461,-157.856544,0.0001966,2]
[368671854,1751289048470,-151.0,0.0001966,2]
[368671855,1751289048479,-151.0,0.0001966,2]
[368671856,1751289048488,-151.0,0.000197,2]
[368671857,1751289048498,-341.9705774,0.00019726,2]
[368671858,1751289048507,-366.3004382,0.00019753,2]
[368671859,1751289048517,-366.3004382,0.00019753,2]
[368671860,1751289048526,-848.4827923,0.00019753,2]
[368671861,1751289048535,-151.0,0.00019762,2]
[368671862,1751289048544,-4818.70195814,0.00019762,2]
[368671863,1751289048553,-269.0,0.00019773,2]
[368671864,1751289048562,-654.0,0.00019777,2]
[368671865,1751289048571,-2151.0,0.00019777,2]
[368671866,1751289048580,-151.0,0.000198,2]
[368671867,1751289048589,-160.0,0.00019815,3]
[368671868,1751289048599,-406.0,0.0001982,2]
[368671869,1751289048608,-366.3004382,0.00019836,2]
[368671870,1751289048617,-366.3004382,0.00019836,2]
[368671871,1751289048626,-460.0,0.00019855,2]
[368671872,1751289048635,-918.71,0.00019855,2]
[368671873,1751289048645,-166.84490938,0.00019856,2]
[368671874,1751289048654,-151.0,0.00019856,2]
[368671875,1751289048663,-877.44,0.00019856,2]
[368671876,1751289048673,-460.0,0.00019856,2]
[368671877,1751289048682,-460.0,0.00019856,2]
[368671878,1751289048692,-1350.45,0.00019856,2]
[368671879,1751289048701,-460.0,0.00019856,2]
[368671880,1751289048711,-1325.04,0.00019856,2]
[368671881,1751289048720,-460.0,0.00019856,2]
[368671882,1751289048729,-460.0,0.00019856,2]
[368671883,1751289048739,-460.0,0.00019856,2]
[368671884,1751289048748,-460.0,0.00019856,2]
[368671885,1751289048758,-548.55,0.00019856,2]
[368671886,1751289048767,-1353.21,0.00019856,2]
[368671887,1751289048776,-377.31783619,0.00019856,2]
[368671888,1751289048896,-1527.30216381,0.00019856,2]
[368671889,1751289048906,-460.0,0.00019856,2]
[368671890,1751289048915,-592.79,0.00019856,2]
[368671891,1751289048924,-960.24275032,0.00019856,2]
[368671892,1751289049242,-460.0,0.00018759,2]
[368671893,1751289049252,-460.0,0.00019033,2]
[368671894,1751289049261,-500.0,0.00019102,2]
[368671895,1751289049272,-980.20724968,0.00019856,2]
[368671896,1751289049281,-1573.38,0.00019856,2]
[368671897,1751289049291,-460.0,0.00019856,2]
[368671898,1751289049300,-151.0,0.00019856,2]
[368671899,1751289049309,-851.94,0.00019856,2]
[368671900,1751289049318,-151.0,0.00019856,2]
[368671901,1751289049328,-460.0,0.00019856,2]
[368671902,1751289049338,-460.0,0.00019856,2]
[368671903,1751289049347,-460.0,0.00019856,2]
[368671904,1751289049355,-151.0,0.00019856,2]
[368671905,1751289049365,-151.0,0.00019856,2]
[368671906,1751289049375,-290.38984433,0.00019856,2]
[368671907,1751289049384,-460.0,0.00019856,2]
[368671908,1751289049394,-460.0,0.00019856,2]
[368671909,1751289049403,-427.84153915,0.00019856,2]
[368671910,1751289049413,-497.4,0.00019856,2]
[368671911,1751289049422,-460.0,0.00019857,2]
[368671912,1751289049432,-460.0,0.00019857,2]
[368671913,1751289049442,-460.0,0.00019857,2]
[368671914,1751289049452,-151.0,0.00019857,2]
[368671915,1751289049462,-460.0,0.00019857,2]
[368671916,1751289049471,-460.0,0.00019857,2]
[368671917,1751289049481,-460.0,0.00019857,2]
[368671918,1751289049490,-460.0,0.00019857,2]
[368671919,1751289049500,-262.31318,0.00019857,2]
[368671920,1751289049510,-294.397675,0.00019857,2]
[368671921,1751289049519,-124.02445642,0.00019857,2]
[368671922,1751289049532,-26.97554358,0.00019857,2]
[368671923,1751289049543,-151.0,0.00019857,2]
[368671924,1751289049553,-460.0,0.00019857,2]
[368671925,1751289049562,-460.0,0.00019857,2]
[368671926,1751289049572,-460.0,0.00019857,2]
[368671927,1751289049582,-104.52445642,0.00019857,2]
[368671928,1751289049885,-355.47554358,0.00019857,2]
[368671929,1751289049895,-460.0,0.00019857,2]
[368671930,1751289049905,-460.0,0.00019857,2]
[368671931,1751289049915,-460.0,0.00019857,2]
[368671932,1751289049925,-218.046274,0.00019857,2]
[368671933,1751289049934,-863.08,0.00019857,2]
[368671934,1751289049944,-460.0,0.00019857,2]
[368671935,1751289049954,-596.43,0.00019857,2]
[368671936,1751289049963,-460.0,0.00019857,2]
[368671937,1751289049973,-460.0,0.00019857,2]
[368671938,1751289049983,-460.0,0.00019857,2]
[368671939,1751289049992,-1440.92,0.00019857,2]
[368671940,1751289050002,-460.0,0.00019857,2]
[368671941,1751289050012,-460.0,0.00019857,2]
[368671942,1751289050022,-460.0,0.00019857,2]
[368671943,1751289050160,-503.1,0.00019857,2]
[368671944,1751289050170,-929.77,0.00019857,2]
[368671945,1751289050180,-2572.33,0.00019857,2]
[368671946,1751289050190,-460.0,0.00019857,2]
[368671947,1751289050200,-460.0,0.00019857,2]
[368671948,1751289050209,-151.0,0.00019858,2]
[368671949,1751289050219,-151.0,0.00019858,2]
[368671950,1751289050229,-2480.35,0.00019858,2]
[368671951,1751289050239,-460.0,0.00019858,2]
[368671952,1751289050248,-460.0,0.00019858,2]
[368671953,1751289050259,-910.79,0.00019858,2]
[368671954,1751289050269,-320.59874928,0.0001986,2]
[368671955,1751289050278,-151.0,0.000199,2]
[368671956,1751289050288,-4818.70195814,0.00019934,2]
[368671957,1751289050297,-77.12860718,0.00019999,2]
[368672187,1751289339893,1927.95573116,0.00017486,2]
[368672188,1751289339915,2339.42823204,0.00017486,2]
[368672199,1751289364069,343.5924766,0.00017487,2]
[368672239,1751289432702,1245.8998753,0.00017626,2]
[368672246,1751289438235,255.363669,0.00013699,2]
[368672259,1751289459747,5815.71574706,0.00017486,2]
[368672260,1751289459771,10000.0,0.00017486,2]
[368672261,1751289459794,9084.28425294,0.00017486,2]
[368672282,1751289488546,203.1676544,0.00017486,2]
[368672381,1751289656218,1819.0,0.000219,60]
[368672425,1751289697441,712.54809266,0.00017485,2]
[368672426,1751289697465,383.79258404,0.00017485,2]
[368672674,1751290097124,10000.2326975,0.000219,60]
[368672683,1751290120123,150.99999938,0.0002,120]
[368672746,1751290232003,-300.0,0.0001838,2]
[368672748,1751290232013,-300.0,0.0001838,2]
[368672749,1751290232023,-300.0,0.0001838,2]
[368672750,1751290232032,-129.68057,0.00018381,2]
[368672753,1751290232045,-1070.31943,0.00018381,2]
[368672755,1751290232054,-402.61974853,0.00018387,2]
[368672757,1751290232063,-874.52338374,0.000184,7]
[368672759,1751290232073,-1200.0,0.00018475,2]
[368672761,1751290232082,-827.72,0.00018476,3]
[368672763,1751290232092,-160.0,0.00018481,2]
[368672765,1751290232101,-460.0,0.00018483,2]
[368672767,1751290232110,-460.0,0.00018483,2]
[368672769,1751290232120,-1299.43,0.00018483,2]
[368672771,1751290232129,-460.0,0.00018483,2]
[368672773,1751290232138,-460.0,0.00018483,2]
[368672775,1751290232148,-460.0,0.00018483,2]
[368672777,1751290232157,-1296.16,0.00018483,2]
[368672779,1751290232168,-460.0,0.00018483,2]
[368672781,1751290232177,-460.0,0.00018483,2]
[368672782,1751290232186,-460.0,0.00018483,2]
[368672783,1751290232195,-1380.57,0.00018483,2]
[368672785,1751290232205,-460.0,0.00018483,2]
[368672786,1751290232214,-460.0,0.00018483,2]
[368672787,1751290232223,-460.0,0.00018483,2]
[368672789,1751290232232,-1290.22,0.00018483,2]
[368672791,1751290232242,-1816.75,0.00018483,2]
[368672793,1751290232251,-551.95,0.00018483,2]
[368672795,1751290232261,-460.0,0.00018483,2]
[368672796,1751290232271,-460.0,0.00018483,2]
[368672797,1751290232280,-869.9,0.00018483,2]
[368672798,1751290232289,-765.4,0.00018483,2]
[368672799,1751290232300,-460.0,0.00018483,2]
[368672800,1751290232311,-460.0,0.00018483,2]
[368672801,1751290232321,-501.72,0.00018483,2]
[368672802,1751290232330,-460.0,0.00018483,2]
[368672803,1751290232339,-460.0,0.00018483,2]
[368672804,1751290232348,-450.79122447,0.00018484,2]
[368672805,1751290232357,-460.0,0.00018484,2]
[368672806,1751290232366,-460.0,0.00018484,2]
[368672807,1751290232375,-460.0,0.00018484,2]
[368672808,1751290232384,-486.41704901,0.00018484,2]
[368672809,1751290232393,-460.0,0.00018484,2]
[368672810,1751290232403,-460.0,0.00018484,2]
[368672811,1751290232413,-460.0,0.00018484,2]
[368672812,1751290232423,-460.0,0.00018484,2]
[368672813,1751290232432,-460.0,0.00018484,2]
[368672814,1751290232442,-460.0,0.00018484,2]
[368672815,1751290232451,-465.858489,0.00018484,2]
[368672816,1751290232462,-460.0,0.00018484,2]
[368672817,1751290232471,-460.0,0.00018484,2]
[368672818,1751290232480,-460.0,0.00018484,2]
[368672819,1751290232490,-460.0,0.00018484,2]
[368672820,1751290232499,-460.0,0.00018484,2]
[368672821,1751290232509,-460.0,0.00018484,2]
[368672822,1751290232520,-460.0,0.00018484,2]
[368672823,1751290232529,-460.0,0.00018484,2]
[368672824,1751290232540,-460.0,0.00018484,2]
[368672825,1751290232549,-460.0,0.00018484,2]
[368672826,1751290232559,-460.0,0.00018484,2]
[368672827,1751290232570,-460.0,0.00018484,2]
[368672828,1751290232580,-460.0,0.00018484,2]
[368672829,1751290232590,-197.12501723,0.00018484,2]
[368672830,1751290232600,-460.0,0.00018484,2]
[368672831,1751290232610,-513.46198829,0.00018484,2]
[368672832,1751290232620,-460.0,0.00018484,2]
[368672833,1751290232629,-460.0,0.00018484,2]
[368672834,1751290232638,-461.37958673,0.00018484,2]
[368672835,1751290232648,-340.18300023,0.00018484,2]
[368672836,1751290232658,-396.10813515,0.00018484,2]
[368672837,1751290232667,-460.0,0.00018484,2]
[368672838,1751290232676,-460.0,0.00018484,2]
[368672839,1751290232685,-460.0,0.00018484,2]
[368672840,1751290232694,-462.50682402,0.00018484,2]
[368672841,1751290232704,-460.0,0.00018484,2]
[368672842,1751290232713,-460.0,0.00018484,2]
[368672843,1751290232722,-460.0,0.00018484,2]
[368672844,1751290232732,-460.0,0.00018484,2]
[368672845,1751290232742,-460.0,0.00018484,2]
[368672846,1751290232751,-460.0,0.00018484,2]
[368672847,1751290232761,-460.0,0.00018484,2]
[368672848,1751290232771,-460.0,0.00018484,2]
[368672849,1751290232780,-460.0,0.00018484,2]
[368672850,1751290232789,-841.17,0.00018484,2]
[368672851,1751290232798,-460.0,0.00018484,2]
[368672852,1751290232807,-460.0,0.00018484,2]
[368672853,1751290232817,-460.0,0.00018484,2]
[368672854,1751290232826,-460.0,0.00018484,2]
[368672855,1751290232835,-460.0,0.00018484,2]
[368672856,1751290232845,-460.0,0.00018484,2]
[368672857,1751290232854,-460.0,0.00018484,2]
[368672858,1751290232864,-460.0,0.00018484,2]
[368672859,1751290232873,-460.0,0.00018484,2]
[368672860,1751290232882,-460.0,0.00018484,2]
[368672861,1751290232891,-503.13,0.00018484,2]
[368672862,1751290232901,-460.0,0.00018484,2]
[368672863,1751290232911,-460.0,0.00018484,2]
[368672864,1751290232920,-1706.33,0.00018484,2]
[368672865,1751290232929,-460.0,0.00018484,2]
[368672866,1751290232939,-460.0,0.00018484,2]
[368672867,1751290232948,-460.0,0.00018484,2]
[368672868,1751290232958,-460.0,0.00018484,2]
[368672869,1751290232967,-161.56239687,0.00018484,2]
[368672870,1751290232977,-211.31966329,0.00018484,2]
[368672871,1751290232986,-2255.38,0.00018484,2]
[368672872,1751290232996,-460.0,0.00018484,2]
[368672873,1751290233006,-460.0,0.00018484,2]
[368672874,1751290233015,-460.0,0.00018484,2]
[368672875,1751290233024,-591.43096997,0.00018484,2]
[368672876,1751290233034,-478.64,0.00018484,2]
[368672877,1751290233043,-497.22,0.00018484,2]
[368672878,1751290233052,-493.34598627,0.00018484,2]
[368672879,1751290233062,-460.0,0.00018484,2]
[368672880,1751290233072,-460.0,0.00018484,2]
[368672881,1751290233081,-460.0,0.00018484,2]
[368672882,1751290233091,-460.0,0.00018484,2]
[368672883,1751290233100,-150.81862345,0.00018484,2]
[368672884,1751290233109,-460.0,0.00018484,2]
[368672885,1751290233119,-460.0,0.00018484,2]
[368672886,1751290233128,-461.152378,0.00018484,2]
[368672887,1751290233138,-460.0,0.00018484,2]
[368672888,1751290233147,-460.0,0.00018484,2]
[368672889,1751290233157,-460.0,0.00018485,2]
[368672890,1751290233166,-460.0,0.00018485,2]
[368672891,1751290233175,-460.0,0.00018485,2]
[368672892,1751290233185,-460.0,0.00018485,2]
[368672893,1751290233194,-460.0,0.00018485,2]